bitfinex-derivatives/quotes_BTCF0:USTF0_20240830
["timestamp","ask_amount","ask_price","bid_price","bid_amount"]
[1725003707007,0.17617489,59436.0,59435.0,0.1438]
[1725003707511,0.12,59438.0,59437.0,0.001]
[1725003707720,0.12,59438.0,59437.0,0.121]
[1725003708014,0.30378691,59438.0,59437.0,0.121]
[1725003708315,0.30378691,59438.0,59437.0,0.12]
[1725003708508,0.30378691,59438.0,59435.0,0.2658]
[1725003708999,0.30478691,59438.0,59437.0,0.002]
[1725003709710,0.30578691,59438.0,59437.0,0.002]
[1725003711105,0.30478691,59438.0,59435.0,0.1448]
[1725003711305,0.12,59436.0,59435.0,0.1448]
[1725003711505,0.204111,59436.0,59435.0,0.1448]
[1725003711704,0.38024508,59436.0,59435.0,0.1448]
[1725003711909,0.38024508,59436.0,59435.0,0.1438]
[1725003712209,0.37924508,59436.0,59435.0,0.1438]
[1725003712414,0.084114,59434.0,59433.0,0.00359191]
[1725003712610,0.204114,59434.0,59433.0,0.1438]
[1725003712800,0.39159507,59434.0,59433.0,0.1438]
[1725003714411,0.39259507,59434.0,59433.0,0.1438]
[1725003714620,0.39259507,59434.0,59429.0,0.12355118]
[1725003714816,0.12,59430.0,59429.0,0.12355118]
[1725003715113,0.30499325,59430.0,59429.0,0.26735118]
[1725003717211,0.30499325,59430.0,59429.0,0.12355118]
[1725003717416,0.30499325,59430.0,59429.0,0.26735118]
[1725003717616,0.30499325,59430.0,59429.0,0.14735118]
[1725003717916,0.30499325,59430.0,59429.0,0.1438]
[1725003718116,0.30599325,59430.0,59429.0,0.1438]
[1725003718311,0.30699325,59430.0,59429.0,0.2638]
[1725003719821,0.18699325,59430.0,59429.0,0.2638]
[1725003720025,0.18699325,59430.0,59429.0,0.77691702]
[1725003720236,0.088002,59443.0,59429.0,1.38051941]
[1725003720237,0.0039,59443.0,59429.0,1.38051941]
[1725003720515,0.3397,59452.0,59442.0,0.12]
[1725003720516,0.3281,59447.0,59442.0,0.12]
[1725003720816,0.12,59447.0,59445.0,0.12]
[1725003721119,0.54999169,59446.0,59445.0,0.26372]
[1725003721714,0.55099169,59446.0,59445.0,0.26372]
[1725003722221,0.19019169,59446.0,59445.0,0.26372]
[1725003722423,0.19319169,59446.0,59445.0,0.26372]
[1725003723217,0.19519169,59446.0,59445.0,0.26372]
[1725003723820,0.19519169,59446.0,59442.0,0.12]
[1725003724013,0.19519169,59446.0,59442.0,0.14372]
[1725003725214,0.19219169,59446.0,59442.0,0.14372]
[1725003726619,0.19019169,59446.0,59442.0,0.14472]
[1725003728115,0.19019169,59446.0,59442.0,0.001]
[1725003728321,0.19019169,59446.0,59443.0,0.14372]
[1725003728617,0.084097,59446.0,59443.0,0.14372]
[1725003729008,0.18329789,59445.0,59443.0,0.14372]
[1725003731226,0.18329789,59445.0,59444.0,0.3608]
[1725003731416,0.18329789,59445.0,59444.0,0.5196]
[1725003731725,0.18529789,59445.0,59444.0,0.5196]
[1725003732118,0.002,59445.0,59444.0,0.5196]
[1725003732318,0.18815114,59445.0,59444.0,0.5196]
[1725003732519,0.18815114,59445.0,59444.0,0.5206]
[1725003732837,0.18615114,59445.0,59444.0,0.5216]
[1725003733226,0.18085808,59449.0,59444.0,0.5206]
[1725003733528,0.18085808,59449.0,59445.0,0.14368]
[1725003736325,0.18185808,59449.0,59445.0,0.14468]
[1725003736530,0.18185808,59449.0,59446.0,0.3608]
[1725003736715,0.18185808,59449.0,59445.0,0.14468]
[1725003737025,0.18185808,59449.0,59445.0,0.001]
[1725003738322,0.18285808,59449.0,59445.0,0.001]
[1725003738826,0.18285808,59449.0,59444.0,0.57918]
[1725003738827,0.18185808,59449.0,59444.0,0.57918]
[1725003739127,0.18185808,59449.0,59444.0,0.663279]
[1725003739721,0.18185808,59449.0,59445.0,0.001]
[1725003739917,0.18085808,59449.0,59445.0,0.001]
[1725003740729,0.18085808,59449.0,59444.0,0.665399]
[1725003740931,0.18085808,59449.0,59444.0,0.664279]
[1725003741533,0.18185808,59449.0,59445.0,0.29]
[1725003741725,0.001,59449.0,59445.0,0.29]
[1725003742127,0.00025233,59450.0,59446.0,2.94]
[1725003742832,0.00025233,59450.0,59449.0,0.3608]
[1725003743216,0.00125233,59450.0,59449.0,0.3608]
[1725003744031,0.00125233,59450.0,59449.0,0.4808]
[1725003745633,0.00025233,59450.0,59449.0,0.3608]
[1725003746423,0.00225233,59450.0,59449.0,0.3608]
[1725003746829,0.00225233,59450.0,59447.0,0.12]
[1725003747029,0.00225233,59450.0,59447.0,0.12346304]
[1725003747236,0.00225233,59450.0,59447.0,0.00346304]
[1725003747237,0.204094,59448.0,59447.0,0.00346304]
[1725003747435,0.204094,59448.0,59447.0,0.14368]
[1725003747626,0.30856766,59448.0,59447.0,0.14368]
[1725003748530,0.30856766,59448.0,59447.0,0.001]
[1725003748730,0.39266166,59448.0,59447.0,0.001]
[1725003749028,0.39266166,59448.0,59447.0,0.003]
[1725003749631,0.084097,59446.0,59445.0,0.00345314]
[1725003749822,0.084097,59446.0,59440.0,0.14368]
[1725003749823,0.204097,59446.0,59440.0,0.14368]
[1725003750029,0.3608,59443.0,59441.0,0.12]
[1725003750427,0.18381326,59442.0,59441.0,0.12]
[1725003752433,0.18381326,59442.0,59441.0,0.121]
[1725003752838,0.18381326,59442.0,59441.0,0.123]
[1725003754841,0.12,59442.0,59441.0,0.003]
[1725003755134,0.66073329,59442.0,59441.0,0.1466]
[1725003766143,0.74483529,59442.0,59441.0,0.003]
[1725003767443,1.84951529,59442.0,59441.0,0.003]
[1725003768344,1.12951529,59442.0,59441.0,0.003]
[1725003768545,0.62483529,59442.0,59441.0,0.003]
[1725003768738,0.74483529,59442.0,59441.0,0.003]
[1725003770439,0.62483529,59442.0,59441.0,0.003]
[1725003770654,0.74483529,59442.0,59441.0,0.003]
[1725003780171,0.62483529,59442.0,59441.0,0.003]
[1725003780471,0.74483529,59442.0,59441.0,0.003]
[1725003782666,1.84951529,59442.0,59441.0,0.003]
[1725003784072,1.24951529,59442.0,59441.0,0.003]
[1725003784570,0.74483529,59442.0,59441.0,0.003]
[1725003786880,0.57741222,59442.0,59441.0,0.003]
[1725003788767,0.66151422,59442.0,59441.0,0.003]
[1725003793983,0.084104,59441.0,59438.0,0.00025233]
[1725003794309,0.649014,59439.0,59438.0,0.00025233]
[1725003794673,1.33000542,59439.0,59438.0,0.00025233]
[1725003795487,1.38228403,59439.0,59438.0,0.00025233]
[1725003795679,1.33500542,59439.0,59438.0,0.00025233]
[1725003796076,1.3852667,59439.0,59438.0,0.00025233]
[1725003796581,1.33800542,59439.0,59438.0,0.00025233]
[1725003797271,0.83328542,59439.0,59438.0,0.00025233]
[1725003802076,0.47248542,59439.0,59438.0,0.00025233]
[1725003802281,1.19408542,59439.0,59438.0,0.00025233]
[1725003804486,1.69880542,59439.0,59438.0,0.00025233]
[1725003808189,1.19408542,59439.0,59438.0,0.00025233]
[1725003808887,0.168228,59434.0,59433.0,0.0039]
[1725003809092,0.168228,59434.0,59429.0,0.0039]
[1725003809093,0.084119,59430.0,59429.0,0.0039]
[1725003809391,0.084122,59428.0,59427.0,0.0783]
[1725003809591,0.204122,59428.0,59427.0,0.0783]
[1725003809815,0.39352308,59428.0,59427.0,0.0783]
[1725003810295,0.39252308,59428.0,59427.0,0.0783]
[1725003810487,0.39252308,59428.0,59427.0,0.08183066]
[1725003811093,0.39352308,59428.0,59427.0,0.08283066]
[1725003811886,0.39452308,59428.0,59427.0,0.08283066]
[1725003813090,0.83944508,59428.0,59427.0,0.08283066]
[1725003818193,0.83944508,59428.0,59427.0,1e-08]
[1725003818194,0.92356708,59428.0,59427.0,1e-08]
[1725003818388,0.63532308,59428.0,59427.0,1e-08]
[1725003818594,0.75532308,59428.0,59427.0,1e-08]
[1725003819389,0.76432308,59428.0,59427.0,1e-08]
[1725003819585,0.76432308,59428.0,59425.0,0.15105207]
[1725003819586,0.084125,59426.0,59425.0,0.15105207]
[1725003819789,0.204125,59426.0,59425.0,0.15105207]
[1725003819994,0.39461701,59426.0,59425.0,0.15105207]
[1725003821194,0.40161701,59426.0,59425.0,0.15105207]
[1725003821406,0.40661701,59426.0,59425.0,0.15105207]
[1725003824096,0.76741701,59426.0,59425.0,0.15105207]
[1725003826201,0.40661701,59426.0,59425.0,0.15105207]
[1725003826403,0.76741701,59426.0,59425.0,0.15105207]
[1725003829604,0.40661701,59426.0,59425.0,0.15105207]
[1725003829797,0.76741701,59426.0,59425.0,0.00345207]
[1725003830107,0.76741701,59426.0,59421.0,0.12]
[1725003830108,0.68329201,59426.0,59423.0,0.12]
[1725003831303,0.32049201,59426.0,59423.0,0.12]
[1725003831510,0.444928,59424.0,59423.0,0.12]
[1725003831897,0.63626892,59424.0,59423.0,0.12]
[1725003832903,0.63926892,59424.0,59423.0,0.12]
[1725003833106,0.64426892,59424.0,59423.0,0.12]
[1725003833605,0.64426892,59424.0,59423.0,1.669769]
[1725003833606,0.19181027,59424.0,59423.0,1.669769]
[1725003833803,0.008,59424.0,59423.0,1.669769]
[1725003834505,0.00415233,59433.0,59423.0,1.669769]
[1725003834506,0.00415233,59433.0,59423.0,1.58564]
[1725003834806,0.00415233,59433.0,59432.0,0.12]
[1725003834807,0.00025233,59433.0,59432.0,0.12]
[1725003835000,0.00025233,59433.0,59432.0,0.708877]
[1725003835403,0.00025233,59433.0,59432.0,1.308877]
[1725003835609,0.00525233,59433.0,59432.0,1.308877]
[1725003835999,0.00825233,59433.0,59432.0,1.308877]
[1725003836202,0.01725233,59433.0,59432.0,1.308877]
[1725003836702,0.02725233,59433.0,59432.0,1.308877]
[1725003837105,0.02725233,59433.0,59432.0,0.708877]
[1725003837503,0.02725233,59433.0,59432.0,0.588877]
[1725003837704,0.02725233,59433.0,59432.0,0.708877]
[1725003838004,0.02725233,59433.0,59432.0,1.308877]
[1725003838200,0.02725233,59433.0,59432.0,0.708877]
[1725003838600,0.02725233,59433.0,59432.0,0.71241672]
[1725003840307,0.02725233,59433.0,59432.0,1.31241672]
[1725003840704,0.02725233,59433.0,59432.0,0.71241672]
[1725003840905,0.02725233,59433.0,59432.0,0.50829972]
[1725003841199,0.02725233,59433.0,59432.0,1.22829972]
[1725003841428,0.02725233,59433.0,59432.0,0.62829972]
[1725003841803,0.01325233,59433.0,59432.0,0.62829972]
[1725003842005,0.38070258,59440.0,59432.0,0.12353972]
[1725003842208,0.084105,59440.0,59439.0,0.12]
[1725003842609,0.27451755,59440.0,59439.0,0.12]
[1725003843108,0.19041255,59440.0,59439.0,0.12]
[1725003843309,0.19041255,59440.0,59439.0,0.564907]
[1725003843513,0.19215048,59442.0,59441.0,0.084104]
[1725003843814,0.00025233,59445.0,59444.0,0.0841]
[1725003844009,0.0039,59453.0,59444.0,0.0841]
[1725003844010,0.0039,59453.0,59444.0,0.99380437]
[1725003844215,0.084083,59456.0,59444.0,0.99380437]
[1725003844216,0.084083,59456.0,59452.0,0.4808]
[1725003844527,0.084083,59456.0,59455.0,0.12]
[1725003844907,0.1789329,59455.0,59453.0,0.12]
[1725003845106,0.3830159,59456.0,59454.0,0.1434]
[1725003845316,0.204083,59456.0,59454.0,0.1434]
[1725003845510,0.18481311,59455.0,59454.0,0.1434]
[1725003846206,0.19781311,59455.0,59454.0,0.1434]
[1725003847215,0.28489711,59455.0,59454.0,0.1444]
[1725003847413,0.28489711,59455.0,59454.0,0.001]
[1725003847916,0.28489711,59455.0,59454.0,0.002]
[1725003848908,0.28489711,59455.0,59454.0,0.00548881]
[1725003849311,0.08659487,59455.0,59454.0,0.00548881]
[1725003849617,0.26444194,59455.0,59454.0,0.00548881]
[1725003851815,0.33624194,59455.0,59454.0,0.00548881]
[1725003853915,0.33624194,59455.0,59454.0,0.002]
[1725003854810,0.78112594,59455.0,59454.0,0.002]
[1725003855017,0.78112594,59455.0,59450.0,0.00025233]
[1725003855018,0.16818,59451.0,59450.0,0.00025233]
[1725003855220,0.64898,59451.0,59450.0,0.00025233]
[1725003855421,0.83339185,59451.0,59450.0,0.00025233]
[1725003855921,0.62930185,59451.0,59450.0,0.00025233]
[1725003856224,0.74930185,59451.0,59450.0,0.00025233]
[1725003856421,0.75630185,59451.0,59450.0,0.00125233]
[1725003857122,0.84039185,59451.0,59450.0,0.00125233]
[1725003857425,0.84339185,59451.0,59450.0,0.00125233]
[1725003857627,0.85439185,59451.0,59450.0,0.00225233]
[1725003858127,0.85439185,59451.0,59450.0,0.00125233]
[1725003858316,0.85739185,59451.0,59450.0,0.00125233]
[1725003859412,0.86139185,59451.0,59450.0,0.00125233]
[1725003860118,0.50059185,59451.0,59450.0,0.00125233]
[1725003860326,1.22219185,59451.0,59450.0,0.00125233]
[1725003860923,1.13810185,59451.0,59450.0,0.00125233]
[1725003861423,1.22219185,59451.0,59450.0,0.00125233]
[1725003866225,0.0841,59444.0,59443.0,0.0039]
[1725003866431,0.0841,59444.0,59443.0,0.00352637]
[1725003866432,0.5649,59444.0,59443.0,0.00352637]
[1725003866630,0.084107,59439.0,59438.0,0.1434]
[1725003866935,0.74261408,59439.0,59438.0,0.1434]
[1725003867632,0.65850708,59439.0,59438.0,0.1434]
[1725003868434,0.65750708,59439.0,59438.0,0.1434]
[1725003869035,0.66450708,59439.0,59438.0,0.1444]
[1725003870155,0.66450708,59439.0,59438.0,0.14802042]
[1725003871339,0.30470708,59439.0,59438.0,0.14802042]
[1725003871537,0.66550708,59439.0,59438.0,0.14802042]
[1725003871845,0.30470708,59439.0,59438.0,0.14802042]
[1725003872141,0.38881408,59439.0,59438.0,0.14802042]
[1725003873942,0.74961408,59439.0,59438.0,0.14802042]
[1725003876036,0.62961408,59439.0,59438.0,0.14802042]
[1725003878049,0.74961408,59439.0,59438.0,0.14802042]
[1725003878245,0.74961408,59439.0,59438.0,0.00462042]
[1725003880036,0.83372108,59439.0,59438.0,0.001]
[1725003880234,1.33844108,59439.0,59438.0,0.001]
[1725003882138,0.83372108,59439.0,59438.0,0.001]
[1725003884146,0.84226464,59439.0,59438.0,0.001]
[1725003885548,0.084114,59434.0,59433.0,0.00025233]
[1725003885743,0.444914,59434.0,59433.0,0.00025233]
[1725003885941,0.63378578,59434.0,59433.0,0.00025233]
[1725003886743,0.63378578,59434.0,59433.0,0.00685052]
[1725003886944,0.71789978,59434.0,59433.0,0.00325233]
[1725003887751,0.71789978,59434.0,59433.0,0.00425233]
[1725003891762,0.168248,59427.0,59426.0,0.0039]
[1725003891953,0.168248,59427.0,59426.0,0.00347603]
[1725003891954,0.444924,59427.0,59426.0,0.00347603]
[1725003892153,0.084127,59425.0,59422.0,0.20413]
[1725003892460,0.27565662,59424.0,59422.0,0.20413]
[1725003892652,0.084129,59423.0,59422.0,0.20413]
[1725003893063,0.27565762,59423.0,59421.0,0.16012505]
[1725003893251,0.12,59422.0,59421.0,0.16012505]
[1725003893451,0.081131,59422.0,59421.0,0.28012505]
[1725003893658,0.26796846,59422.0,59421.0,0.28012505]
[1725003896156,0.27096846,59422.0,59421.0,0.28012505]
[1725003896967,0.75176846,59422.0,59421.0,0.16012505]
[1725003900369,0.18983746,59422.0,59421.0,0.28012505]
[1725003901065,0.18983746,59422.0,59421.0,1.22993705]
[1725003901276,0.00025233,59428.0,59424.0,0.084128]
[1725003901458,0.00025233,59428.0,59427.0,0.12]
[1725003901863,0.00025233,59428.0,59427.0,0.6248]
[1725003901864,0.1930044,59428.0,59427.0,0.6248]
[1725003902064,0.5538044,59428.0,59426.0,0.14324]
[1725003902270,0.5538044,59428.0,59421.0,0.16012505]
[1725003902271,0.6738044,59428.0,59421.0,0.16012505]
[1725003902461,0.12,59422.0,59421.0,0.16012505]
[1725003902765,0.12,59422.0,59421.0,0.30336505]
[1725003902766,0.30238603,59422.0,59421.0,0.30336505]
[1725003902967,0.38651703,59422.0,59421.0,0.30336505]
[1725003904060,0.26651703,59422.0,59421.0,0.30336505]
[1725003904973,0.27051703,59422.0,59421.0,0.30336505]
[1725003906171,0.27151703,59422.0,59421.0,0.30336505]
[1725003908465,0.18738603,59422.0,59421.0,0.30336505]
[1725003908670,0.18738603,59422.0,59421.0,1.16904505]
[1725003911086,0.005,59422.0,59421.0,1.85317705]
[1725003912286,0.00025233,59428.0,59427.0,0.084124]
[1725003912492,0.00025233,59428.0,59427.0,0.204124]
[1725003912783,0.00025233,59428.0,59427.0,1.308924]
[1725003912986,0.00025233,59428.0,59427.0,0.708924]
[1725003913379,0.00825233,59428.0,59427.0,0.709924]
[1725003913583,0.00825233,59428.0,59427.0,1.309924]
[1725003914191,0.01925233,59428.0,59427.0,1.309924]
[1725003916496,0.01925233,59428.0,59427.0,1.31353382]
[1725003917805,0.01925233,59428.0,59427.0,0.59353382]
[1725003917991,0.32404628,59428.0,59427.0,0.00460982]
[1725003918190,0.20404628,59428.0,59427.0,0.00460982]
[1725003923896,0.64896828,59428.0,59427.0,0.00460982]
[1725003924400,0.76896828,59428.0,59427.0,0.00460982]
[1725003925496,0.28816828,59428.0,59427.0,0.00460982]
[1725003926401,0.40816828,59428.0,59427.0,0.00460982]
[1725003927800,0.40816828,59428.0,59420.0,0.1239]
[1725003927801,0.084132,59421.0,59420.0,0.0039]
[1725003927994,0.084132,59421.0,59415.0,0.12]
[1725003927995,0.084134,59420.0,59417.0,0.12]
[1725003928205,0.084134,59420.0,59415.0,0.14324]
[1725003928206,0.084134,59420.0,59419.0,0.12]
[1725003928508,0.27738999,59420.0,59419.0,0.12]
[1725003929702,0.27738999,59420.0,59419.0,0.121]
[1725003930904,0.27938999,59420.0,59419.0,0.121]
[1725003932917,0.39938999,59420.0,59419.0,0.121]
[1725003933802,0.76018999,59420.0,59419.0,0.121]
[1725003936112,0.76018999,59420.0,59419.0,0.001]
[1725003939509,0.84432399,59420.0,59419.0,0.001]
[1725003940404,0.84432399,59420.0,59419.0,0.121]
[1725003940902,0.84432399,59420.0,59419.0,0.001]
[1725003941408,0.74131027,59420.0,59419.0,0.001]
[1725003943799,0.38051027,59420.0,59419.0,0.001]
[1725003944013,0.74131027,59420.0,59419.0,0.001]
[1725003947513,0.38051027,59420.0,59419.0,0.001]
[1725003947814,0.74131027,59420.0,59419.0,0.001]
[1725003954918,0.62131027,59420.0,59419.0,0.001]
[1725003955118,0.74131027,59420.0,59419.0,0.001]
[1725003955521,0.38051027,59420.0,59419.0,0.001]
[1725003955719,0.74131027,59420.0,59419.0,0.001]
[1725003956718,0.65717627,59420.0,59419.0,0.121]
[1725003958525,0.65717627,59420.0,59419.0,0.001]
[1725003960425,0.09224227,59420.0,59419.0,0.121]
[1725003961018,0.09224227,59420.0,59419.0,0.205135]
[1725003961417,0.08698961,59420.0,59419.0,1.310015]
[1725003961621,0.002,59420.0,59419.0,4.250015]
[1725003961927,0.002,59420.0,59419.0,4.610815]
[1725003962127,0.00025233,59428.0,59419.0,1.58668]
[1725003962425,0.00025233,59428.0,59427.0,0.084124]
[1725003962727,0.18309016,59428.0,59427.0,0.233024]
[1725003964221,0.18309016,59428.0,59427.0,0.737824]
[1725003964728,0.20209016,59428.0,59427.0,0.739824]
[1725003965421,0.20209016,59428.0,59427.0,0.815924]
[1725003965618,0.20209016,59428.0,59427.0,1.415924]
[1725003965822,0.01925233,59428.0,59427.0,1.415924]
[1725003967127,0.01925233,59428.0,59427.0,1.41946146]
[1725003968718,0.01925233,59428.0,59427.0,4.35946146]
[1725003969236,0.0039,59437.0,59436.0,0.084111]
[1725003969417,0.084095,59447.0,59437.0,0.08411]
[1725003969418,0.3647,59446.0,59437.0,0.08411]
[1725003969630,0.3608,59446.0,59445.0,0.12]
[1725003969932,0.54404488,59446.0,59445.0,0.12]
[1725003970122,0.18324488,59446.0,59445.0,0.12]
[1725003970431,0.26734188,59446.0,59445.0,0.12]
[1725003970825,0.096097,59446.0,59445.0,0.121]
[1725003971024,0.27697831,59446.0,59445.0,0.121]
[1725003971320,0.29097831,59446.0,59445.0,0.122]
[1725003972241,0.27697831,59446.0,59445.0,0.121]
[1725003972529,0.28697831,59446.0,59445.0,0.122]
[1725003973633,0.28697831,59446.0,59445.0,0.12552971]
[1725003973931,0.20288131,59446.0,59445.0,0.12552971]
[1725003974334,0.022,59446.0,59445.0,0.63020971]
[1725003974626,0.022,59446.0,59445.0,0.77320971]
[1725003977729,0.022,59446.0,59445.0,0.63020971]
[1725003977926,0.29683224,59446.0,59445.0,0.26852971]
[1725003980331,0.29683224,59446.0,59445.0,0.12552971]
[1725003980531,0.29683224,59446.0,59445.0,0.26852971]
[1725003983637,0.29683224,59446.0,59445.0,0.77320971]
[1725003983638,0.022,59446.0,59445.0,0.77320971]
[1725003984237,0.022,59446.0,59445.0,1.37320971]
[1725003985030,0.022,59446.0,59445.0,0.77320971]
[1725003985428,0.022,59446.0,59445.0,0.63020971]
[1725003985641,0.022,59446.0,59445.0,0.26848971]
[1725003986738,0.014,59446.0,59445.0,0.77216971]
[1725003986936,0.006,59446.0,59445.0,0.77116971]
[1725003987337,0.004,59446.0,59445.0,0.77116971]
[1725003987634,0.002,59446.0,59445.0,0.77116971]
[1725003988437,0.004,59446.0,59445.0,0.62820971]
[1725003988742,0.004,59446.0,59445.0,0.26648971]
[1725003989342,0.006,59446.0,59445.0,0.26648971]
[1725003990244,0.006,59446.0,59445.0,0.77116971]
[1725003990846,0.006,59446.0,59445.0,0.85526771]
[1725003992641,0.003,59446.0,59445.0,0.85526771]
[1725003993052,0.003,59446.0,59445.0,0.85626771]
[1725003993053,0.001,59446.0,59445.0,0.85626771]
[1725003993851,0.003,59446.0,59445.0,0.85526771]
[1725003994253,0.003,59446.0,59445.0,0.35058771]
[1725003994457,0.006,59446.0,59445.0,0.35058771]
[1725003995155,0.006,59446.0,59445.0,1.45526771]
[1725003998358,0.006,59446.0,59445.0,1.81606771]
[1725003998763,0.006,59446.0,59445.0,1.45526771]
[1725003998957,0.006,59446.0,59445.0,1.81606771]
[1725004003570,0.006,59446.0,59445.0,1.67310771]
[1725004003763,0.006,59446.0,59445.0,1.81594771]
[1725004010865,0.006,59446.0,59445.0,1.21594771]
[1725004011570,0.006,59446.0,59445.0,0.85514771]
[1725004011772,0.006,59446.0,59445.0,1.21594771]
[1725004016264,0.006,59446.0,59445.0,0.85514771]
[1725004016476,0.006,59446.0,59445.0,1.21594771]
[1725004017077,0.006,59446.0,59445.0,0.71230771]
[1725004017273,0.006,59446.0,59445.0,0.14636971]
[1725004017477,0.006,59446.0,59445.0,0.12352971]
[1725004017669,0.006,59446.0,59445.0,0.26636971]
[1725004018174,0.006,59446.0,59445.0,0.35046771]
[1725004018764,0.004,59446.0,59445.0,0.35646771]
[1725004018965,0.0716,59450.0,59445.0,0.35846771]
[1725004019170,0.0716,59450.0,59449.0,0.12]
[1725004019371,0.00025233,59451.0,59449.0,0.12]
[1725004020774,0.00325233,59451.0,59449.0,0.12]
[1725004021171,0.00325233,59451.0,59449.0,0.62464]
[1725004021694,0.00325233,59451.0,59449.0,3.56464]
[1725004021876,0.00325233,59451.0,59450.0,0.084091]
[1725004022182,0.00425233,59451.0,59450.0,0.084091]
[1725004022372,0.00325233,59451.0,59450.0,0.588731]
[1725004022875,0.00225233,59451.0,59450.0,0.588731]
[1725004023579,0.00325233,59451.0,59450.0,0.588731]
[1725004024285,0.00425233,59451.0,59450.0,0.588731]
[1725004025189,0.00425233,59451.0,59450.0,0.084091]
[1725004026084,0.00425233,59451.0,59450.0,0.588731]
[1725004026282,0.1369,59461.0,59449.0,0.12]
[1725004026484,0.0681,59461.0,59460.0,0.4808]
[1725004026697,0.0681,59461.0,59460.0,0.3608]
[1725004026985,0.084084,59455.0,59454.0,0.21032]
[1725004027178,0.084084,59455.0,59454.0,0.473]
[1725004027375,0.27901367,59455.0,59454.0,0.473]
[1725004029384,0.27801367,59455.0,59454.0,0.35659468]
[1725004029579,1.38261367,59455.0,59454.0,0.21391468]
[1725004029778,1.38761367,59455.0,59454.0,0.21391468]
[1725004029974,1.39161367,59455.0,59454.0,0.001]
[1725004030284,0.084091,59450.0,59449.0,0.00025233]
[1725004030599,1.668531,59450.0,59449.0,0.00025233]
[1725004030886,0.084101,59444.0,59427.0,0.21032]
[1725004031095,0.084112,59435.0,59434.0,0.12]
[1725004031389,0.084118,59432.0,59431.0,0.12]
[1725004031786,0.78204193,59432.0,59431.0,0.12]
[1725004032096,0.27624193,59432.0,59431.0,0.12]
[1725004032685,0.19412393,59432.0,59431.0,0.133]
[1725004032886,0.19412393,59432.0,59431.0,0.013]
[1725004033189,0.19412393,59432.0,59431.0,0.131]
[1725004033390,0.19512393,59432.0,59431.0,0.144]
[1725004041595,0.64004093,59432.0,59431.0,0.024]
[1725004041803,0.76004093,59432.0,59431.0,0.024]
[1725004042594,0.84415793,59432.0,59431.0,0.024]
[1725004043093,1.94795793,59432.0,59431.0,0.017]
[1725004043295,1.94695793,59432.0,59431.0,0.01]
[1725004044984,1.95595793,59432.0,59431.0,0.005]
[1725004045704,0.084128,59424.0,59395.0,0.084169]
[1725004045894,0.3588,59397.0,59395.0,0.204169]
[1725004046197,0.444956,59404.0,59398.0,0.12]
[1725004046198,0.12,59401.0,59398.0,0.12]
[1725004046384,0.08416,59402.0,59398.0,0.12]
[1725004046586,0.18884678,59400.0,59398.0,0.12]
[1725004046792,0.18884678,59401.0,59398.0,0.12]
[1725004046992,0.08316,59402.0,59398.0,0.12]
[1725004047198,0.001,59397.0,59395.0,0.014]
[1725004047396,0.001,59397.0,59396.0,0.12]
[1725004047698,0.18314517,59397.0,59396.0,0.12]
[1725004048197,0.18314517,59397.0,59395.0,0.028]
[1725004048690,0.18314517,59397.0,59395.0,0.03153405]
[1725004048996,0.17814517,59397.0,59395.0,0.01753405]
[1725004049194,0.17814517,59397.0,59395.0,0.00353405]
[1725004049392,0.17814517,59397.0,59396.0,0.009]
[1725004049393,0.17914517,59397.0,59396.0,0.009]
[1725004049900,0.17914517,59397.0,59396.0,0.003]
[1725004051592,0.17914517,59397.0,59388.0,0.14276]
[1725004051593,1.57422517,59397.0,59388.0,0.14276]
[1725004051794,1.57422517,59397.0,59366.0,0.3608]
[1725004051795,0.29,59388.0,59368.0,0.29]
[1725004051997,0.3608,59376.0,59368.0,0.00840159]
[1725004052206,0.29,59372.0,59367.0,0.0706]
[1725004052505,0.19204536,59387.0,59367.0,0.0706]
[1725004052506,0.17677634,59371.0,59368.0,0.3608]
[1725004052800,0.17677634,59380.0,59371.0,0.084203]
[1725004052999,0.17677634,59380.0,59379.0,0.3608]
[1725004053305,0.001,59388.0,59379.0,0.57128]
[1725004053797,0.19105101,59387.0,59379.0,0.57128]
[1725004054501,0.19105101,59387.0,59379.0,0.21048]
[1725004054697,0.19105101,59387.0,59380.0,0.14268]
[1725004054899,0.00025254,59389.0,59380.0,0.14268]
[1725004055094,0.00025254,59389.0,59388.0,0.3608]
[1725004055301,0.18337488,59388.0,59384.0,0.29]
[1725004055492,0.18362742,59389.0,59387.0,0.3608]
[1725004055688,0.00025254,59389.0,59387.0,0.3608]
[1725004055998,0.18817651,59388.0,59385.0,0.0656]
[1725004056393,0.18917651,59388.0,59385.0,0.0656]
[1725004056592,0.18917651,59388.0,59386.0,0.14268]
[1725004057101,0.18917651,59388.0,59387.0,0.14272]
[1725004057504,0.18917651,59388.0,59387.0,3.08272]
[1725004057996,0.18917651,59388.0,59387.0,2.94]
[1725004057997,0.18817651,59388.0,59387.0,2.94]
[1725004058197,0.19017651,59388.0,59387.0,2.94]
[1725004058702,0.19017651,59388.0,59387.0,3.08272]
[1725004059008,0.19017651,59388.0,59387.0,0.14272]
[1725004059700,0.19217651,59388.0,59387.0,0.14272]
[1725004061300,0.19417651,59388.0,59387.0,0.14272]
[1725004061499,0.19417651,59388.0,59387.0,0.50352]
[1725004061699,0.19417651,59388.0,59387.0,3.44352]
[1725004062104,0.18817651,59388.0,59387.0,0.50452]
[1725004062297,0.18817651,59388.0,59387.0,0.14372]
[1725004062897,0.18817651,59388.0,59387.0,0.14572]
[1725004063208,0.18817651,59388.0,59387.0,0.2299]
[1725004064403,0.18817651,59388.0,59387.0,0.2279]
[1725004065807,0.18817651,59388.0,59387.0,0.5887]
[1725004067096,0.27235551,59388.0,59387.0,0.001]
[1725004067405,0.27235551,59388.0,59387.0,0.14372]
[1725004068497,0.18817651,59388.0,59387.0,0.14372]
[1725004070794,0.27235551,59388.0,59387.0,0.14372]
[1725004071000,0.63315551,59388.0,59387.0,0.14372]
[1725004071308,0.27335551,59388.0,59387.0,0.14272]
[1725004072109,0.27835551,59388.0,59387.0,0.14372]
[1725004072609,0.56835551,59388.0,59387.0,0.001]